fUST/lending_fUST_20250226
["ID","MTS","AMOUNT","RATE_DAILY","PERIOD"]
[354541783,1740563437868,-500.0,0.00054794,120]
[354541784,1740563437877,-500.0,0.00054794,120]
[354541785,1740563437886,-500.0,0.00054794,120]
[354541786,1740563437896,-501.44240864,0.00054794,120]
[354541787,1740563437905,-500.0,0.00054794,120]
[354541789,1740563437915,-500.0,0.00054794,120]
[354541790,1740563437925,-500.0,0.00054794,120]
[354541791,1740563437934,-500.0,0.00054794,120]
[354541792,1740563437943,-500.0,0.00054794,120]
[354541793,1740563437952,-500.0,0.00054794,120]
[354541794,1740563437962,-500.0,0.00054794,120]
[354541796,1740563437971,-500.0,0.00054794,120]
[354541797,1740563437980,-500.0,0.00054794,30]
[354541798,1740563437990,-501.25837839,0.00054794,120]
[354541799,1740563437999,-500.0,0.00054794,120]
[354541800,1740563438008,-231.80777619,0.00054794,120]
[354541801,1740563438018,-500.0,0.00054794,20]
[354541803,1740563438028,-500.0,0.00054794,20]
[354541804,1740563438037,-500.0,0.00054794,20]
[354541805,1740563438046,-500.0,0.00054794,20]
[354541806,1740563438055,-500.0,0.00054794,20]
[354541807,1740563438064,-15230.28,0.00054794,120]
[354541808,1740563438074,-500.0,0.00054794,20]
[354541809,1740563438083,-500.0,0.00054794,20]
[354541810,1740563438092,-509.68969341,0.00054794,20]
[354541811,1740563438101,-500.0,0.00054794,120]
[354541812,1740563438111,-500.0,0.00054794,120]
[354541813,1740563438120,-500.0,0.00054794,120]
[354541814,1740563438129,-502.19461125,0.00054794,120]
[354541815,1740563438139,-500.0,0.00054794,120]
[354541816,1740563438149,-500.0,0.00054794,120]
[354541817,1740563438158,-500.0,0.00054794,120]
[354541819,1740563438167,-1734.91,0.00054794,120]
[354541820,1740563438176,-500.51797031,0.00054794,120]
[354541821,1740563438185,-500.0,0.00054794,120]
[354541822,1740563438195,-500.0,0.00054794,120]
[354541823,1740563438204,-500.0,0.00054794,120]
[354541824,1740563438213,-500.0,0.00054794,120]
[354541825,1740563438223,-500.0,0.00054794,120]
[354541826,1740563438231,-502.77628447,0.00054794,120]
[354541827,1740563438241,-500.0,0.00054794,120]
[354541829,1740563438250,-501.70423381,0.00054794,120]
[354541830,1740563438259,-500.0,0.00054794,120]
[354541831,1740563438269,-500.0,0.00054794,120]
[354541832,1740563438278,-500.0,0.00054794,120]
[354541833,1740563438287,-500.0,0.00054794,120]
[354541834,1740563438297,-247.03872973,0.00054794,120]
[354541838,1740563438425,-500.0,0.00054794,120]
[354541839,1740563438435,-501.92399289,0.00054794,120]
[354541840,1740563438444,-500.0,0.00054794,120]
[354541842,1740563438453,-500.0,0.00054794,120]
[354541844,1740563438462,-500.0,0.00054794,120]
[354541845,1740563438471,-500.49395937,0.00054794,120]
[354541846,1740563438481,-500.0,0.00054794,120]
[354541847,1740563438490,-500.0,0.00054794,120]
[354541848,1740563438499,-187.31144215,0.00054794,120]
[354541849,1740563438508,-500.0,0.00054794,120]
[354541850,1740563438517,-502.55302853,0.00054794,120]
[354541851,1740563438527,-500.0,0.00054794,120]
[354541852,1740563438536,-500.0,0.00054794,30]
[354541853,1740563438546,-500.0,0.00054794,120]
[354541854,1740563438555,-500.0,0.00054794,120]
[354541855,1740563438564,-500.0,0.00054799,120]
[354541856,1740563438574,-500.0,0.00054799,120]
[354541858,1740563438583,-1040.5,0.00054799,120]
[354541859,1740563438592,-246.29,0.000548,30]
[354541860,1740563438602,-7461.6,0.000548,30]
[354541861,1740563438610,-535.81173119,0.00055,120]
[354541862,1740563438619,-340.25,0.00055,10]
[354541863,1740563438628,-502.81902964,0.00055415,15]
[354541864,1740563438638,-500.0,0.00055686,15]
[354541865,1740563438649,-2200.0,0.00055999,120]
[354541866,1740563438658,-194.84,0.000561,7]
[354541867,1740563438668,-322.1196736,0.00056115,15]
[354541868,1740563438677,-503.73572662,0.00056214,15]
[354541869,1740563438687,-214.04776825,0.00058804,2]
[354541870,1740563438696,-2383.18,0.00059999,120]
[354541871,1740563438705,-196.96120977,0.0006,30]
[354541872,1740563438715,-269.8726631,0.0006,120]
[354541873,1740563438724,-696.06911484,0.0006,12]
[354541874,1740563438734,-160.9198493,0.0006,2]
[354541875,1740563438743,-1000.0,0.0006,120]
[354541876,1740563438753,-1000.0,0.0006,120]
[354541877,1740563438762,-1000.0,0.0006,120]
[354541878,1740563438771,-1034.0,0.00060252,15]
[354541879,1740563438781,-1000.0,0.00060252,15]
[354541880,1740563438790,-1000.0,0.00060252,15]
[354541881,1740563438799,-500.0,0.00060272,120]
[354541882,1740563438809,-1040.5,0.00060272,120]
[354541883,1740563438818,-1040.5,0.00060272,120]
[354541884,1740563438827,-2383.18,0.00060272,120]
[354541885,1740563438836,-2383.18,0.00060272,120]
[354541886,1740563438848,-2383.18,0.00060272,120]
[354541887,1740563438858,-2383.18,0.00060272,120]
[354541888,1740563438867,-500.0,0.00060273,15]
[354541889,1740563438877,-500.0,0.00060273,15]
[354541890,1740563438887,-500.0,0.00060273,15]
[354541891,1740563438896,-500.0,0.00060273,14]
[354541892,1740563438906,-500.0,0.00060273,15]
[354541893,1740563438917,-173.93644795,0.00060273,15]
[354541894,1740563438927,-500.0,0.00060273,15]
[354541895,1740563438937,-500.0,0.00060273,14]
[354541896,1740563438946,-500.0,0.00060273,120]
[354541897,1740563438956,-502.83001969,0.00060273,120]
[354541898,1740563438964,-500.0,0.00060273,120]
[354541899,1740563438974,-500.0,0.00060273,120]
[354541900,1740563438983,-500.0,0.00060273,120]
[354541901,1740563438994,-500.0,0.00060273,120]
[354541902,1740563439003,-500.0,0.00060273,120]
[354541903,1740563439013,-500.0,0.00060273,120]
[354541904,1740563439023,-500.0,0.00060273,120]
[354541905,1740563439033,-500.0,0.00060273,120]
[354541906,1740563439042,-500.0,0.00060273,120]
[354541907,1740563439053,-500.0,0.00060273,120]
[354541908,1740563439063,-500.0,0.00060273,120]
[354541909,1740563439072,-500.0,0.00060273,120]
[354541910,1740563439082,-500.0,0.00060273,120]
[354541911,1740563439092,-199.44093682,0.00060273,120]
[354541912,1740563439101,-500.0,0.00060273,120]
[354541913,1740563439110,-500.0,0.00060273,120]
[354541914,1740563439120,-514.23872698,0.00060273,120]
[354541915,1740563439129,-500.0,0.00060273,120]
[354541916,1740563439139,-500.0,0.00060273,120]
[354541917,1740563439148,-500.0,0.00060273,120]
[354541918,1740563439158,-500.0,0.00060273,120]
[354541919,1740563439167,-500.0,0.00060273,120]
[354541920,1740563439176,-500.0,0.00060273,120]
[354541921,1740563439185,-500.0,0.00060273,120]
[354541922,1740563439195,-500.0,0.00060273,120]
[354541923,1740563439204,-570.31093886,0.00060273,120]
[354541924,1740563439213,-502.04673179,0.00060273,120]
[354541925,1740563439222,-500.0,0.00060273,120]
[354541926,1740563439231,-500.0,0.00060273,120]
[354541927,1740563439240,-614.19469131,0.00060273,120]
[354541928,1740563439250,-500.0,0.00060273,120]
[354541929,1740563439259,-500.0,0.00060273,120]
[354541930,1740563439268,-500.0,0.00060273,120]
[354541931,1740563439277,-553.20910285,0.00060273,120]
[354541932,1740563439286,-500.0,0.00060273,120]
[354541933,1740563439295,-504.67489934,0.00060273,120]
[354541934,1740563439304,-500.0,0.00060273,120]
[354541935,1740563439314,-454.64153617,0.00060273,120]
[354541936,1740563439323,-500.0,0.00060273,120]
[354541937,1740563439332,-500.0,0.00060273,120]
[354541938,1740563439341,-500.0,0.00060273,120]
[354541939,1740563439350,-503.75102842,0.00060273,120]
[354541940,1740563439360,-235.83755312,0.00060273,120]
[354541941,1740563439369,-500.0,0.00060273,120]
[354541942,1740563439378,-500.0,0.00060273,120]
[354541943,1740563439388,-500.0,0.00060273,120]
[354541944,1740563439397,-500.0,0.00060273,120]
[354541945,1740563439406,-500.0,0.00060273,120]
[354541946,1740563439417,-500.0,0.00060273,120]
[354541947,1740563439426,-500.0,0.00060273,120]
[354541948,1740563439436,-500.0,0.00060273,120]
[354541949,1740563439445,-506.85527151,0.00060273,120]
[354541950,1740563439454,-500.0,0.00060273,120]
[354541951,1740563439464,-500.0,0.00060273,120]
[354541952,1740563439473,-500.0,0.00060273,120]
[354541953,1740563439482,-500.0,0.00060273,120]
[354541954,1740563439491,-500.0,0.00060273,120]
[354541955,1740563439501,-500.0,0.00060273,120]
[354541956,1740563439510,-500.0,0.00060273,120]
[354541957,1740563439520,-500.0,0.00060273,120]
[354541958,1740563439529,-500.0,0.00060273,120]
[354541959,1740563439538,-431.18529835,0.00060273,120]
[354541960,1740563439547,-500.0,0.00060273,120]
[354541961,1740563439556,-500.0,0.00060273,120]
[354541962,1740563439566,-500.0,0.00060273,120]
[354541963,1740563439575,-500.0,0.00060273,120]
[354541964,1740563439584,-458.29105004,0.00060273,120]
[354541965,1740563439593,-500.0,0.00060273,120]
[354541966,1740563439602,-500.0,0.00060273,120]
[354541967,1740563439611,-600.0,0.00060273,120]
[354541968,1740563439620,-500.0,0.00060273,120]
[354541969,1740563439630,-500.0,0.00060273,120]
[354541970,1740563439639,-500.0,0.00060273,120]
[354541971,1740563439648,-500.0,0.00060273,120]
[354541972,1740563439657,-623.67098555,0.00060273,120]
[354541973,1740563439667,-315.63900102,0.00060273,120]
[354541974,1740563439676,-500.0,0.00060273,120]
[354541975,1740563439686,-500.0,0.00060273,120]
[354541976,1740563439695,-500.0,0.00060273,120]
[354541977,1740563439705,-500.0,0.00060273,120]
[354541978,1740563439714,-500.0,0.00060273,120]
[354541979,1740563439723,-504.84596292,0.00060273,120]
[354541980,1740563439733,-500.0,0.00060273,120]
[354541981,1740563439743,-500.0,0.00060273,120]
[354541982,1740563439753,-503.6316829,0.00060273,120]
[354541983,1740563439762,-500.0,0.00060273,120]
[354541984,1740563439772,-500.0,0.00060273,120]
[354541985,1740563439781,-500.0,0.00060273,120]
[354541986,1740563439790,-500.0,0.00060273,120]
[354541987,1740563439799,-500.0,0.00060273,120]
[354541988,1740563439811,-500.0,0.00060273,120]
[354541989,1740563439821,-500.0,0.00060273,120]
[354541990,1740563439830,-500.0,0.00060273,120]
[354541991,1740563439839,-500.0,0.00060273,120]
[354541992,1740563439852,-500.0,0.00060273,120]
[354541993,1740563439861,-500.0,0.00060273,120]
[354541994,1740563439870,-500.0,0.00060273,120]
[354541995,1740563439879,-500.0,0.00060273,120]
[354541996,1740563439890,-500.0,0.00060273,120]
[354541997,1740563439899,-500.0,0.00060273,120]
[354541999,1740563439909,-180.82289655,0.00060273,120]
[354542000,1740563439918,-500.0,0.00060273,120]
[354542001,1740563439929,-500.0,0.00060273,120]
[354542002,1740563439939,-500.0,0.00060273,120]
[354542003,1740563439948,-512.92763103,0.00060273,120]
[354542004,1740563439957,-500.0,0.00060273,120]
[354542005,1740563439967,-500.0,0.00060273,120]
[354542006,1740563439976,-364.8287798,0.00060273,120]
[354542007,1740563439985,-500.0,0.00060273,120]
[354542008,1740563439995,-327.45419447,0.00060273,120]
[354542010,1740563440069,-172.54580553,0.00060273,120]
[354542011,1740563440080,-500.0,0.00060273,120]
[354542012,1740563440089,-37.62799449,0.00060273,30]
[354542026,1740563440285,-500.0,0.00054794,120]
[354542027,1740563440294,-500.0,0.00054794,120]
[354542029,1740563440303,-462.37200551,0.00060273,30]
[354542031,1740563440312,-500.0,0.00060273,120]
[354542033,1740563440322,-500.0,0.00060273,120]
[354542035,1740563440331,-500.0,0.00060273,120]
[354542037,1740563440340,-500.0,0.00060273,120]
[354542039,1740563440349,-500.0,0.00060273,120]
[354542040,1740563440358,-500.0,0.00060273,120]
[354542042,1740563440368,-502.79864107,0.00060273,120]
[354542044,1740563440377,-500.0,0.00060273,120]
[354542046,1740563440386,-500.0,0.00060273,120]
[354542048,1740563440395,-500.0,0.00060273,120]
[354542050,1740563440405,-500.0,0.00060273,120]
[354542052,1740563440414,-500.0,0.00060273,120]
[354542054,1740563440423,-500.0,0.00060273,120]
[354542055,1740563440432,-500.0,0.00060273,120]
[354542057,1740563440442,-500.0,0.00060273,120]
[354542059,1740563440451,-500.0,0.00060273,120]
[354542061,1740563440460,-500.0,0.00060273,120]
[354542063,1740563440470,-500.0,0.00060273,120]
[354542065,1740563440479,-2357.65,0.00060273,120]
[354542067,1740563440488,-578.40598647,0.00060273,120]
[354542069,1740563440497,-185.20281347,0.00060273,120]
[354542071,1740563440506,-500.0,0.00060273,120]
[354542073,1740563440516,-301.83971852,0.00060273,120]
[354542075,1740563440525,-365.19142662,0.00060273,120]
[354542077,1740563440534,-500.0,0.00060273,120]
[354542079,1740563440544,-500.0,0.00060273,120]
[354542081,1740563440553,-500.0,0.00060273,120]
[354542083,1740563440562,-501.13880314,0.00060273,120]
[354542085,1740563440571,-500.0,0.00060273,120]
[354542087,1740563440581,-504.62953768,0.00060273,120]
[354542089,1740563440590,-500.0,0.00060273,120]
[354542091,1740563440599,-500.0,0.00060273,120]
[354542093,1740563440609,-500.0,0.00060273,120]
[354542095,1740563440618,-500.0,0.00060273,120]
[354542097,1740563440627,-500.0,0.00060273,120]
[354542099,1740563440637,-500.0,0.00060273,120]
[354542101,1740563440647,-500.0,0.00060273,120]
[354542103,1740563440657,-500.0,0.00060273,120]
[354542104,1740563440666,-500.0,0.00060273,120]
[354542105,1740563440675,-500.0,0.00060273,120]
[354542106,1740563440684,-500.0,0.00060273,120]
[354542107,1740563440693,-500.0,0.00060273,120]
[354542108,1740563440702,-500.0,0.00060273,120]
[354542109,1740563440711,-500.0,0.00060273,120]
[354542110,1740563440720,-500.0,0.00060273,120]
[354542111,1740563440729,-500.0,0.00060273,120]
[354542112,1740563440739,-500.0,0.00060273,120]
[354542113,1740563440747,-500.0,0.00060273,120]
[354542114,1740563440757,-500.0,0.00060273,120]
[354542115,1740563440766,-500.0,0.00060273,120]
[354542116,1740563440775,-500.0,0.00060273,120]
[354542117,1740563440785,-506.95177876,0.00060273,120]
[354542118,1740563440794,-500.0,0.00060273,120]
[354542119,1740563440803,-500.0,0.00060273,120]
[354542120,1740563440813,-500.0,0.00060273,120]
[354542121,1740563440822,-500.0,0.00060273,120]
[354542122,1740563440831,-500.0,0.00060273,120]
[354542123,1740563440841,-500.0,0.00060273,120]
[354542124,1740563440852,-500.0,0.00060273,120]
[354542125,1740563440861,-500.0,0.00060273,120]
[354542126,1740563440870,-1622.71,0.00060273,120]
[354542127,1740563440881,-500.0,0.00060273,120]
[354542128,1740563440890,-513.85585879,0.00060273,120]
[354542129,1740563440899,-500.0,0.00060273,120]
[354542130,1740563440908,-502.59601756,0.00060273,120]
[354542131,1740563440919,-500.0,0.00060273,120]
[354542132,1740563440931,-500.0,0.00060273,120]
[354542133,1740563440939,-500.0,0.00060273,120]
[354542134,1740563440949,-500.0,0.00060273,120]
[354542135,1740563440957,-500.0,0.00060273,120]
[354542136,1740563440966,-500.0,0.00060273,120]
[354542137,1740563440975,-500.0,0.00060273,120]
[354542138,1740563440984,-500.0,0.00060273,120]
[354542139,1740563440994,-500.0,0.00060273,120]
[354542140,1740563441003,-500.0,0.00060273,120]
[354542141,1740563441012,-500.0,0.00060273,120]
[354542142,1740563441021,-500.0,0.00060273,120]
[354542143,1740563441030,-500.0,0.00060273,120]
[354542144,1740563441039,-324.89246156,0.00060273,120]
[354542145,1740563441048,-500.0,0.00060273,120]
[354542146,1740563441057,-500.0,0.00060273,120]
[354542147,1740563441066,-500.0,0.00060273,120]
[354542148,1740563441075,-500.0,0.00060273,120]
[354542149,1740563441084,-500.0,0.00060273,120]
[354542150,1740563441095,-500.0,0.00060273,120]
[354542151,1740563441104,-500.0,0.00060273,120]
[354542152,1740563441113,-500.0,0.00060273,120]
[354542153,1740563441122,-500.0,0.00060273,120]
[354542154,1740563441131,-500.0,0.00060273,120]
[354542155,1740563441140,-500.0,0.00060273,120]
[354542156,1740563441150,-500.0,0.00060273,120]
[354542158,1740563441159,-500.0,0.00060273,120]
[354542159,1740563441168,-43.99383885,0.00060273,120]
[354542162,1740563441216,-500.0,0.00054794,120]
[354542163,1740563441226,-300.84838754,0.00054794,120]
[354542165,1740563441236,-59.75246504,0.00060273,120]
[354542417,1740563443534,-613.45859779,0.00054794,120]
[354542419,1740563443544,-396.25369611,0.00060273,120]
[354542421,1740563443553,-500.0,0.00060273,120]
[354542423,1740563443563,-500.0,0.00060273,120]
[354542425,1740563443572,-637.28710195,0.00060273,120]
[354542427,1740563443581,-500.0,0.00060273,120]
[354542429,1740563443591,-500.0,0.00060273,120]
[354542431,1740563443600,-500.0,0.00060273,120]
[354542433,1740563443609,-500.0,0.00060273,120]
[354542435,1740563443618,-500.0,0.00060273,120]
[354542437,1740563443628,-500.0,0.00060273,120]
[354542439,1740563443637,-500.0,0.00060273,120]
[354542442,1740563443646,-294.65218369,0.00060273,120]
[354542445,1740563443655,-500.0,0.00060273,30]
[354542448,1740563443664,-500.0,0.00060273,120]
[354542451,1740563443674,-500.0,0.00060273,120]
[354542454,1740563443684,-500.0,0.00060273,120]
[354542457,1740563443693,-500.0,0.00060273,120]
[354542460,1740563443703,-500.0,0.00060273,120]
[354542463,1740563443712,-500.0,0.00060273,120]
[354542465,1740563443721,-505.07879378,0.00060273,120]
[354542467,1740563443730,-500.0,0.00060273,120]
[354542469,1740563443740,-502.77333859,0.00060273,120]
[354542471,1740563443749,-500.0,0.00060273,120]
[354542486,1740563443878,-500.0,0.00060273,120]
[354542488,1740563443888,-5169.69,0.00060273,7]
[354542490,1740563443898,-500.0,0.00060273,120]
[354542492,1740563443908,-638.0641,0.00060273,120]
[354542494,1740563443930,-500.0,0.00060273,120]
[354542496,1740563443941,-500.0,0.00060273,120]
[354542498,1740563443951,-500.0,0.00060273,120]
[354542500,1740563443960,-500.0,0.00060273,120]
[354542502,1740563443969,-500.0,0.00060273,120]
[354542504,1740563443979,-500.0,0.00060273,120]
[354542506,1740563443988,-500.0,0.00060273,120]
[354542508,1740563443999,-500.0,0.00060273,120]
[354542510,1740563444011,-500.0,0.00060273,120]
[354542512,1740563444024,-500.0,0.00060273,120]
[354542513,1740563444033,-500.0,0.00060273,120]
[354542515,1740563444043,-500.0,0.00060273,120]
[354542518,1740563444052,-500.0,0.00060273,120]
[354542519,1740563444061,-500.0,0.00060273,120]
[354542521,1740563444070,-500.0,0.00060273,120]
[354542524,1740563444080,-500.0,0.00060273,120]
[354542525,1740563444089,-312.74218796,0.00060273,120]
[354542709,1740563446577,-500.0,0.00054794,120]
[354542711,1740563446587,-500.0,0.00054794,120]
[354542713,1740563446596,-586.08098828,0.00054794,120]
[354542715,1740563446605,-500.0,0.00054794,120]
[354542717,1740563446614,-187.25781204,0.00060273,120]
[354542719,1740563446623,-500.0,0.00060273,120]
[354542721,1740563446633,-158.20172577,0.00060273,120]
[354543621,1740563601865,4242.1381697,0.00043974,30]
[354543622,1740563722758,76811.33833314,0.00043974,120]
[354543623,1740564089365,915.18,0.00043985,120]
[354543624,1740564415128,-242.23633907,0.00036709,2]
[354543625,1740564415149,-146.49669664,0.00040314,2]
[354543626,1740564446972,-51.04571936,0.00040314,2]
[354543627,1740564446994,-493.65369846,0.00041205,15]
[354543628,1740564447016,-126.30058218,0.0004397,2]
[354543643,1740564632787,-373.69941782,0.0004397,2]
[354543645,1740564632797,-500.0,0.0004397,2]
[354543646,1740564632806,-500.0,0.0004397,2]
[354543648,1740564632815,-500.0,0.0004397,2]
[354543649,1740564632825,-500.0,0.0004397,2]
[354543651,1740564632834,-500.0,0.0004397,2]
[354543653,1740564632843,-151.0,0.00043985,30]
[354543655,1740564632852,-151.0,0.00043985,30]
[354543657,1740564632861,-166.1,0.00045354,30]
[354543659,1740564632871,-1025.98984512,0.0004594,120]
[354543660,1740564632880,-150.0,0.000466,2]
[354543662,1740564632889,-182.71,0.00046723,30]
[354543663,1740564632899,-200.981,0.00048092,30]
[354543664,1740564632908,-1146.4,0.000482,45]
[354543666,1740564632918,-1146.4,0.000482,45]
[354543668,1740564632928,-1084.96956488,0.000482,45]
[354543670,1740564632947,-61.43043512,0.000482,45]
[354543677,1740564633105,-195.12191055,0.000482,45]
[354543679,1740564633117,-951.27808945,0.000482,45]
[354543680,1740564633127,-1146.4,0.000482,45]
[354543681,1740564633137,-49.32191055,0.000482,45]
[354543753,1740564640806,-247.162785,0.000482,45]
[354543770,1740564643638,-849.91530445,0.000482,45]
[354543772,1740564643647,-1146.4,0.000482,45]
[354543774,1740564643656,-1146.4,0.000482,45]
[354543776,1740564643666,-1146.4,0.000482,45]
[354543778,1740564643675,-1146.4,0.000482,45]
[354543780,1740564643684,-1146.4,0.000482,45]
[354543782,1740564643694,-1146.4,0.000482,45]
[354543784,1740564643703,-221.0791,0.00049461,30]
[354543786,1740564643712,-1000.0,0.00049791,120]
[354543788,1740564643721,-302.0,0.0005083,30]
[354543789,1740564643731,-179.62279214,0.00051961,44]
[354543792,1740564643740,-6020.93109184,0.00054087,2]
[354543794,1740564643749,-173.924,0.00054087,101]
[354543795,1740564643759,-571.70598005,0.00054594,120]
[354543798,1740564643769,-571.70598004,0.00054644,120]
[354543799,1740564643778,-595.4601,0.00054693,30]
[354543801,1740564643787,-2612.25565148,0.00054694,120]
[354543802,1740564643799,-36789.36739598,0.00054694,120]
[354543803,1740564643809,-160.53582621,0.00054694,2]
[354543805,1740564643818,-571.70598004,0.00054694,120]
[354543807,1740564643828,-500.0,0.00054773,10]
[354543808,1740564643837,-311.9205989,0.00054773,10]
[354543809,1740564643846,-290.6928308,0.00054793,120]
[354543810,1740564643855,-500.0,0.00054794,120]
[354543811,1740564643870,-500.0,0.00054794,30]
[354543812,1740564643887,-500.0,0.00054794,120]
[354543813,1740564643897,-500.0,0.00054794,120]
[354543814,1740564643906,-500.0,0.00054794,120]
[354543815,1740564643915,-500.0,0.00054794,120]
[354543816,1740564643925,-500.0,0.00054794,120]
[354543817,1740564643935,-500.0,0.00054794,120]
[354543818,1740564643946,-507.59519644,0.00054794,120]
[354543819,1740564643955,-299.14230115,0.00054794,120]
[354543820,1740564643964,-627.4867248,0.00054794,120]
[354543821,1740564643973,-500.0,0.00054794,120]
[354543822,1740564643982,-500.0,0.00054794,120]
[354543823,1740564643991,-500.0,0.00054794,120]
[354543824,1740564644001,-465.27544063,0.00054794,120]
[354543825,1740564644011,-500.0,0.00054794,120]
[354543826,1740564644020,-500.0,0.00054794,120]
[354543827,1740564644029,-500.0,0.00054794,120]
[354543828,1740564644039,-365.56768737,0.00054794,120]
[354543829,1740564644048,-500.0,0.00054794,120]
[354543830,1740564644058,-500.0,0.00054794,120]
[354543831,1740564644067,-500.0,0.00054794,120]
[354543832,1740564644076,-187.65074797,0.00054794,120]
[354543833,1740564644085,-500.0,0.00054794,120]
[354543834,1740564644094,-500.0,0.00054794,120]
[354543835,1740564644103,-500.0,0.00054794,120]
[354543836,1740564644112,-501.59793554,0.00054794,120]
[354543837,1740564644121,-500.0,0.00054794,120]
[354543838,1740564644131,-501.35878037,0.00054794,120]
[354543839,1740564644140,-504.82108059,0.00054794,120]
[354543840,1740564644149,-430.61633851,0.00054794,120]
[354543848,1740565211311,30126.53756251,0.00044022,30]
[354543856,1740565630793,-300.0,0.00024998,2]
[354543857,1740565630817,-500.0,0.00024999,2]
[354543858,1740565630839,-274.61377708,0.00024999,2]
[354543859,1740565630862,-500.0,0.00024999,2]
[354543860,1740565630885,-204.38622292,0.00024999,2]
[354543862,1740565682904,5000.0,0.00027,30]
[354543883,1740565831845,-295.61377708,0.00024999,2]
[354543884,1740565831854,-500.0,0.00024999,2]
[354543885,1740565831863,-200.14297693,0.00024999,2]
[354543886,1740565831872,-500.0,0.00024999,2]
[354543887,1740565831881,-500.0,0.00024999,2]
[354543888,1740565831890,-500.0,0.00024999,2]
[354543889,1740565831899,-500.0,0.00024999,2]
[354543890,1740565831909,-500.0,0.00024999,2]
[354543891,1740565831919,-500.0,0.00024999,2]
[354543892,1740565831927,-500.0,0.00024999,2]
[354543893,1740565831937,-500.0,0.00024999,2]
[354543894,1740565831946,-500.0,0.00024999,2]
[354543895,1740565831955,-500.0,0.00024999,2]
[354543896,1740565831964,-500.0,0.00024999,2]
[354543897,1740565831973,-500.0,0.00024999,2]
[354543898,1740565831982,-500.0,0.00024999,2]
[354543899,1740565831991,-500.0,0.00024999,2]
[354543900,1740565832001,-332766.52129574,0.00025,3]
[354543901,1740565832010,-172.83260594,0.00025525,2]
[354543902,1740565832023,-500.0,0.00025625,2]
[354543903,1740565832032,-471.23815792,0.00025625,2]
[354543904,1740565832041,-500.0,0.00025625,2]
[354543905,1740565832051,-501.49242729,0.00025625,2]
[354543906,1740565832060,-502.36897386,0.00025625,2]
[354543907,1740565832069,-281.61507427,0.00025714,2]
[354543908,1740565832078,-500.0,0.00025714,2]
[354543909,1740565832087,-154.73752114,0.00026473,2]
[354543910,1740565832096,-297.8266841,0.00026573,2]
[354543911,1740565832105,-237.64,0.000266,7]
[354543912,1740565832114,-500.0,0.000275,5]
[354543913,1740565832123,-48444.79364792,0.0003,30]
[354543914,1740565832135,-1353.20635208,0.0003,30]
[354543915,1740565832145,-1000.0,0.00031194,5]
[354543916,1740565832155,-7461.6,0.000333,30]
[354543917,1740565832164,-388.7330357,0.00033973,2]
[354543918,1740565832173,-172.83260592,0.00035248,2]
[354543919,1740565832183,-1500.0,0.00041213,10]
[354543920,1740565832192,-493.65369846,0.0004124,15]
[354543921,1740565832201,-5016.482846,0.00042,31]
[354543922,1740565832211,-500.0,0.00042752,41]
[354543923,1740565832220,-151.0,0.00044022,30]